[Event "DFMMLV 2024"]
[Site "Braunfels"]
[Date "2024.05.31"]
[Round "2.46"]
[White "Lerch, Cornelia"]
[Black "Rotermund, Verena"]
[Result "0-1"]
[ECO "C05"]
[WhiteElo "1847"]
[BlackElo "1765"]
[Annotator "NA RC"]
[PlyCount "100"]
[EventDate "2024.05.30"]
[EventType "team-tourn"]
[EventCountry "GER"]
[SourceTitle "playchess.com"]
[Source "ChessBase"]
[SourceQuality "1"]
[TimeControl "40/5400+30:1800+30"]

1. e4 {[%emt 0:00:02]} e6 {[%emt 0:06:37]} 2. d4 {[%emt 0:00:29]} d5 {[%emt 0:01:22]} 3. Nd2 {[%emt 0:00:57]} Nf6 {[%emt 0:00:48]} 4. e5 {[%emt 0:01:13]} Nfd7 {[%emt 0:19:44]} 5. Ngf3 {[%emt 0:00:20]} c5 {[%emt 0:00:25]} 6. c3 {[%emt 0:00:26]} Nc6 {[%emt 0:00:47]} 7. b3 {[%emt 0:06:33]} f6 {[%emt 0:02:56]} 8. exf6 {[%emt 0:01:21]} Nxf6 {[%emt 0:00:10]} 9. Bd3 {[%emt 0:02:45]} cxd4 {[%emt 0:00:32]} 10. cxd4 {[%emt 0:00:26]} Bd6 {[%emt 0:01:01]} 11. Bb2 {[%emt 0:00:56]} O-O {[%emt 0:00:50]} 12. O-O {[%emt 0:00:49]} Bd7 {[%emt 0:07:29]} 13. Re1 $11 {[%emt 0:01:38]} Qb6 {[%emt 0:01:39]} 14. Nf1 {[%emt 0:04:14]} Rae8 {[%emt 0:02:47]} 15. Qd2 {[%emt 0:05:57]} Bb4 {[%emt 0:01:18]} 16. Bc3 {[%emt 0:02:48]} Bxc3 {[%emt 0:00:53]} 17. Qxc3 {[%emt 0:00:15]} Nb4 {[%emt 0:02:17]} 18. Ng3 {[%emt 0:14:45]} Nxd3 {[%emt 0:02:49]} 19. Qxd3 {[%emt 0:00:10]} Bb5 {[%emt 0:00:54]} 20. Qd2 {[%emt 0:01:23]} Qd6 {[%emt 0:03:27]} 21. Ne5 {[%emt 0:01:37]} Nd7 {[%emt 0:02:46]} 22. Qg5 {[%emt 0:02:33]} h6 {[%emt 0:01:33]} 23. Qg6 {[%emt 0:03:56]} Nxe5 {[%emt 0:03:05]} 24. Rxe5 {[%emt 0:00:13]} Rf6 {[%emt 0:00:15]} 25. Qg4 {[%emt 0:02:43]} Rf7 {[%emt 0:02:08]} 26. Rae1 {[%emt 0:02:43]} Bd7 {[%emt 0:01:48]} 27. Qe2 {[%emt 0:09:49]} Ref8 {[%emt 0:01:37]} 28. f3 {[%emt 0:00:29]} Qb4 {[%emt 0:01:19]} 29. Qd3 {[%emt 0:00:35]} Rf4 {[%emt 0:00:44]} 30. Rd1 {[%emt 0:01:43]} a6 {[%emt 0:04:27]} 31. Ne2 {[%emt 0:01:02]} R4f5 {[%emt 0:01:18]} 32. Rxf5 {[%emt 0:01:47]} Rxf5 {[%emt 0:00:21]} 33. Ng3 {[%emt 0:00:25]} Rf6 {[%emt 0:02:30]} 34. Nh5 {[%emt 0:00:25]} Rf7 {[%emt 0:01:28]} 35. Ra1 {[%emt 0:07:17]} Qa3 {[%emt 0:01:25]} 36. Qc2 {[%emt 0:02:15]} Qa5 {[%emt 0:03:34]} 37. a3 {[%emt 0:02:38]} Qb6 {[%emt 0:00:33]} 38. Rd1 {[%emt 0:00:12]} e5 {[%emt 0:01:48]} 39. Qc3 {[%emt 0:02:41]} e4 {[%emt 0:00:21]} 40. Ng3 {[%emt 0:02:09]} exf3 {[%emt 0:00:29]} 41. gxf3 {[%emt 0:30:12]} Qf6 {[%emt 0:30:50]} 42. Kg2 {[%emt 0:00:28]} Qh4 {[%emt 0:13:29]} 43. Kg1 {[%emt 0:01:07]} Qg5 {[%emt 0:02:57]} 44. Re1 {[%emt 0:02:54]} Qf4 {[%emt 0:00:00]} 45. Kf2 {[%emt 0:00:00]} h5 {[%emt 0:00:00]} 46. h4 {[%emt 0:00:00]} Bg4 {[%emt 0:00:00]} 47. Re3 {[%emt 0:00:00]} Bh3 {[%emt 0:00:00]} 48. Nxh5 {[%emt 0:00:00]} Qxh4+ {[%emt 0:00:00]} 49. Ng3 {[%emt 0:00:00]} Bd7 {[%emt 0:00:00]} 50. Qe1 {[%emt 0:00:00]} Qh2+ {[%emt 0:00:00]} 0-1

[Event "DFMMLV 2024"]
[Site "Braunfels"]
[Date "2024.05.31"]
[Round "2.49"]
[White "Vogel, Heike"]
[Black "Pavlov, Liliane"]
[Result "1-0"]
[ECO "D03"]
[WhiteElo "2095"]
[BlackElo "1846"]
[Annotator "RC"]
[PlyCount "49"]
[EventDate "2024.05.30"]
[EventType "team-tourn"]
[EventCountry "GER"]
[SourceTitle "playchess.com"]
[Source "ChessBase"]
[SourceQuality "1"]
[TimeControl "40/5400+30:1800+30"]

1. d4 {[%emt 0:00:05]} Nf6 {[%emt 0:01:00]} 2. Nf3 {[%emt 0:00:21]} e6 {[%emt 0:00:47]} 3. Bg5 {[%emt 0:01:38]} d5 {[%emt 0:00:34]} 4. e3 {[%emt 0:00:46]} c5 {[%emt 0:04:09]} 5. Nbd2 {[%emt 0:01:25]} Nc6 {[%emt 0:05:43]} 6. c3 {[%emt 0:00:45]} Be7 {[%emt 0:04:19]} 7. Bd3 {[%emt 0:00:40]} Bd7 {[%emt 0:04:14]} 8. Ne5 {[%emt 0:09:32]} h6 {[%emt 0:03:52]} 9. Bf4 {[%emt 0:01:10]} Nxe5 {[%emt 0:01:25]} 10. dxe5 {[%emt 0:13:07]} Nh7 {[%emt 0:01:41]} 11. Qh5 {[%emt 0:12:33]} Nf8 {[%emt 0:22:45]} 12. Rd1 {[%emt 0:13:47]} Qb6 {[%emt 0:12:52]} 13. c4 {[%emt 0:11:12]} g6 {[%emt 0:01:37]} 14. Qe2 {[%emt 0:00:55]} O-O-O {[%emt 0:05:14]} 15. b4 {[%emt 0:07:02]} Qxb4 {[%emt 0:01:45]} 16. Rb1 {[%emt 0:01:54]} Qa5 {[%emt 0:00:53]} 17. O-O {[%emt 0:00:59]} Bc6 {[%emt 0:02:15]} 18. cxd5 {[%emt 0:03:18]} exd5 {[%emt 0:00:40]} 19. e4 {[%emt 0:08:48]} c4 {[%emt 0:15:55]} 20. Bc2 {[%emt 0:01:28]} Qxa2 {[%emt 0:06:12]} 21. Rfc1 {[%emt 0:02:57]} Ba3 {[%emt 0:01:21]} 22. Ra1 {[%emt 0:01:09]} Qb2 {[%emt 0:00:02]} 23. exd5 {[%emt 0:02:07]} Bxd5 {[%emt 0:01:24]} 24. Nxc4 {[%emt 0:01:32]} Qb5 {[%emt 0:01:16]} 25. Nd6+ {[%emt 0:00:29]} 1-0

[Event "DFMMLV 2024"]
[Site "Braunfels"]
[Date "2024.05.31"]
[Round "2.50"]
[White "Albayrak, Berrak"]
[Black "Zimmer, Elke"]
[Result "1/2-1/2"]
[ECO "B00"]
[WhiteElo "1850"]
[BlackElo "1920"]
[Annotator "NA RC"]
[PlyCount "76"]
[EventDate "2024.05.30"]
[EventType "team-tourn"]
[EventCountry "GER"]
[SourceTitle "playchess.com"]
[Source "ChessBase"]
[SourceQuality "1"]
[TimeControl "40/5400+30:1800+30"]

1. e4 {[%emt 0:00:03]} d6 {[%emt 0:01:56]} 2. Nf3 {[%emt 0:00:29]} Nc6 {[%emt 0:00:11]} 3. g3 {[%emt 0:00:42]} Bg4 {[%emt 0:00:21]} 4. d3 {[%emt 0:05:07]} Nd4 {[%emt 0:02:39]} 5. Nbd2 {[%emt 0:01:16]} e5 {[%emt 0:01:13]} 6. c3 {[%emt 0:04:56]} Nxf3+ {[%emt 0:00:44]} 7. Nxf3 {[%emt 0:00:08]} Be7 {[%emt 0:04:13]} 8. Bg2 {[%emt 0:01:35]} Qd7 {[%emt 0:01:04]} 9. Be3 {[%emt 0:12:11]} h6 {[%emt 0:01:09]} 10. h3 {[%emt 0:05:37]} Bh5 {[%emt 0:03:33]} 11. Qc2 {[%emt 0:15:02]} (11. Nxe5 $2 Bxd1 12. Nxd7 Ba4 $19) 11... c5 {[%emt 0:02:06]} 12. a4 {[%emt 0:04:02]} g5 {[%emt 0:00:22]} 13. Nd2 {[%emt 0:03:28]} f6 $16 {[%emt 0:02:54]} 14. O-O {[%emt 0:04:40]} Bf7 {[%emt 0:00:17]} 15. Nc4 {[%emt 0:04:19]} Be6 {[%emt 0:00:26]} 16. Kh2 {[%emt 0:00:50]} h5 {[%emt 0:00:11]} 17. Qe2 {[%emt 0:04:03]} Bd8 {[%emt 1:15:41]} 18. f4 {[%emt 0:04:09]} h4 {[%emt 0:00:00]} 19. f5 {[%emt 0:05:21]} hxg3+ {[%emt 0:00:00]} 20. Kxg3 {[%emt 0:02:16]} Bxc4 {[%emt 0:00:00]} 21. dxc4 {[%emt 0:00:06]} Qh7 {[%emt 0:00:00]} 22. Bf2 {[%emt 0:03:21]} Be7 {[%emt 0:00:00]} 23. b4 {[%emt 0:03:54]} Rd8 {[%emt 0:00:00]} 24. Rad1 {[%emt 0:01:45]} b6 {[%emt 0:00:00]} 25. Rd3 {[%emt 0:01:33]} Nh6 {[%emt 0:00:00]} 26. Rfd1 {[%emt 0:01:37]} g4 {[%emt 0:00:00]} 27. Kh2 {[%emt 0:01:33]} Qf7 {[%emt 0:00:00]} 28. Rd5 {[%emt 0:04:48]} gxh3 {[%emt 0:00:00]} 29. Bxh3 {[%emt 0:01:01]} Qh7 {[%emt 0:00:00]} 30. Qh5+ {[%emt 0:01:00]} Nf7 {[%emt 0:00:00]} 31. Qxh7 {[%emt 0:02:27]} Rxh7 {[%emt 0:00:00]} 32. R5d3 {[%emt 0:00:40]} Ng5 {[%emt 0:00:00]} 33. Re1 {[%emt 0:01:18]} Kf7 {[%emt 0:00:00]} 34. a5 {[%emt 0:01:12]} Rdh8 {[%emt 0:00:00]} 35. Ree3 {[%emt 0:00:18]} Rc8 {[%emt 0:00:00]} 36. b5 {[%emt 0:00:56]} Rch8 {[%emt 0:00:00]} 37. a6 {[%emt 0:00:24]} Bf8 {[%emt 0:00:00]} 38. Kg2 {[%emt 0:00:47]} Nxh3 {[%emt 0:10:30]} 1/2-1/2

[Event "DFMMLV 2024"]
[Site "Braunfels"]
[Date "2024.05.31"]
[Round "2.51"]
[White "Noll, Sonja"]
[Black "Bauer, Laura Sophie"]
[Result "1/2-1/2"]
[ECO "B01"]
[WhiteElo "1837"]
[BlackElo "1874"]
[Annotator "NA RC"]
[PlyCount "110"]
[EventDate "2024.05.30"]
[EventType "team-tourn"]
[EventCountry "GER"]
[SourceTitle "playchess.com"]
[Source "ChessBase"]
[SourceQuality "1"]
[TimeControl "40/5400+30:1800+30"]

1. e4 {[%emt 0:00:02]} d5 {[%emt 0:00:12]} 2. exd5 {[%emt 0:00:16]} Qxd5 {[%emt 0:00:19]} 3. Nc3 {[%emt 0:00:48]} Qd6 {[%emt 0:00:44]} 4. d4 {[%emt 0:01:10]} Nf6 {[%emt 0:00:55]} 5. Nf3 {[%emt 0:01:02]} c6 {[%emt 0:01:15]} 6. Ne5 {[%emt 0:10:33]} Qd8 {[%emt 0:24:13]} 7. Bc4 {[%emt 0:01:14]} e6 {[%emt 0:01:29]} 8. O-O {[%emt 0:01:07]} Be7 {[%emt 0:01:34]} 9. Be3 {[%emt 0:02:09]} O-O {[%emt 0:02:18]} 10. Qf3 {[%emt 0:02:04]} Nbd7 {[%emt 0:04:01]} 11. Rad1 $14 {[%emt 0:02:59]} Nd5 {[%emt 0:06:33]} 12. Bc1 {[%emt 0:13:08]} Bd6 {[%emt 0:04:43]} 13. Nxd7 {[%emt 0:01:26]} Bxd7 {[%emt 0:01:49]} 14. Ne4 {[%emt 0:00:34]} Bc7 {[%emt 0:05:36]} 15. c3 {[%emt 0:01:27]} b6 {[%emt 0:09:38]} 16. Qh5 {[%emt 0:04:56]} Nf6 {[%emt 0:06:24]} 17. Qh4 {[%emt 0:01:52]} Nxe4 {[%emt 0:02:05]} 18. Qxe4 {[%emt 0:00:13]} Qf6 {[%emt 0:01:58]} 19. Bd3 {[%emt 0:01:23]} Qg6 {[%emt 0:00:45]} 20. Qf3 {[%emt 0:00:51]} Qf6 {[%emt 0:03:04]} 21. Qxf6 {[%emt 0:04:28]} gxf6 {[%emt 0:00:02]} 22. Bh6 {[%emt 0:02:19]} Rfe8 {[%emt 0:01:35]} 23. f4 {[%emt 0:00:41]} Kh8 {[%emt 0:02:29]} 24. Rf3 {[%emt 0:03:06]} Rg8 {[%emt 0:00:27]} 25. f5 {[%emt 0:04:43]} Bd8 {[%emt 0:03:32]} 26. Rdf1 {[%emt 0:02:35]} Be7 {[%emt 0:00:52]} 27. Rh3 {[%emt 0:03:21]} exf5 28. Bxf5 {[%emt 0:03:16]} Bxf5 {[%emt 0:05:00]} 29. Rxf5 {[%emt 0:00:07]} Rg6 {[%emt 0:01:09]} 30. Re3 {[%emt 0:10:43]} Bd6 {[%emt 0:03:59]} 31. Bf4 {[%emt 0:00:36]} Bxf4 {[%emt 0:01:23]} 32. Rxf4 {[%emt 0:00:03]} Kg7 {[%emt 0:00:08]} 33. Re7 {[%emt 0:00:14]} c5 {[%emt 0:04:03]} 34. dxc5 {[%emt 0:01:04]} bxc5 {[%emt 0:00:01]} 35. h3 {[%emt 0:04:30]} Rg5 {[%emt 0:00:07]} 36. Rc7 {[%emt 0:00:38]} a5 {[%emt 0:01:29]} 37. Rc4 {[%emt 0:04:13]} Rb8 {[%emt 0:00:30]} 38. b3 {[%emt 0:00:37]} Rb5 {[%emt 0:00:26]} 39. Kf2 {[%emt 0:01:24]} Re5 {[%emt 0:00:20]} 40. Rg4+ {[%emt 0:00:16]} Rg5 {[%emt 0:00:28]} 41. Kf3 {[%emt 0:31:03]} h5 {[%emt 0:31:34]} 42. Re4 {[%emt 0:01:10]} Re5 {[%emt 0:00:00]} 43. Kf4 {[%emt 0:00:00]} Kg6 {[%emt 0:00:00]} 44. c4 {[%emt 0:00:00]} Rf5+ {[%emt 0:00:00]} 45. Kg3 {[%emt 0:00:00]} Rb4 {[%emt 0:00:00]} 46. Ree7 {[%emt 0:00:00]} a4 {[%emt 0:00:00]} 47. Rxf7 {[%emt 0:00:00]} Rg5+ {[%emt 0:00:00]} 48. Kf4 {[%emt 0:00:00]} Rf5+ {[%emt 0:00:00]} 49. Kg3 {[%emt 0:00:00]} Rg5+ {[%emt 0:00:00]} 50. Kh4 {[%emt 0:00:00]} axb3 {[%emt 0:00:00]} 51. Rg7+ {[%emt 0:00:00]} Kh6 {[%emt 0:00:00]} 52. Rh7+ {[%emt 0:00:00]} Kg6 {[%emt 0:00:00]} 53. axb3 {[%emt 0:00:00]} Rxb3 {[%emt 0:00:00]} 54. g4 {[%emt 0:00:00]} hxg4 {[%emt 0:01:25]} 55. hxg4 {[%emt 0:00:00]} Rb4 {[%emt 0:07:26]} 1/2-1/2

[Event "DFMMLV 2024"]
[Site "Braunfels"]
[Date "2024.05.31"]
[Round "2.52"]
[White "Ankerst, Milka"]
[Black "Ramm, Madlen"]
[Result "1-0"]
[ECO "A03"]
[WhiteElo "1954"]
[BlackElo "1830"]
[Annotator "RC"]
[PlyCount "115"]
[EventDate "2024.05.30"]
[EventType "team-tourn"]
[EventCountry "GER"]
[SourceTitle "playchess.com"]
[Source "ChessBase"]
[SourceQuality "1"]
[TimeControl "40/5400+30:1800+30"]

1. g3 {[%emt 0:00:02]} d5 {[%emt 0:00:12]} 2. Bg2 {[%emt 0:00:05]} Nf6 {[%emt 0:00:26]} 3. f4 {[%emt 0:00:06]} c5 {[%emt 0:00:37]} 4. Nf3 {[%emt 0:00:58]} Nc6 {[%emt 0:01:09]} 5. b3 {[%emt 0:00:39]} e6 {[%emt 0:00:53]} 6. e3 {[%emt 0:00:33]} Be7 {[%emt 0:00:57]} 7. Bb2 {[%emt 0:00:26]} b6 {[%emt 0:02:40]} 8. c4 {[%emt 0:01:56]} Bb7 {[%emt 0:05:11]} 9. d4 {[%emt 0:04:30]} O-O {[%emt 0:03:06]} 10. Nbd2 {[%emt 0:03:28]} Rc8 {[%emt 0:02:04]} 11. O-O {[%emt 0:04:02]} Rc7 {[%emt 0:06:00]} 12. a3 {[%emt 0:00:35]} Qa8 {[%emt 0:03:04]} 13. Qe2 {[%emt 0:07:23]} Rd8 {[%emt 0:02:24]} 14. dxc5 {[%emt 0:05:26]} bxc5 {[%emt 0:00:43]} 15. Ne5 {[%emt 0:01:31]} dxc4 {[%emt 0:06:35]} 16. Ndxc4 {[%emt 0:04:23]} Nxe5 {[%emt 0:03:04]} 17. fxe5 {[%emt 0:08:51]} Bxg2 {[%emt 0:00:50]} 18. Qxg2 {[%emt 0:00:06]} Qxg2+ {[%emt 0:00:06]} 19. Kxg2 {[%emt 0:00:05]} Nd5 {[%emt 0:00:48]} 20. e4 {[%emt 0:07:03]} Nb6 {[%emt 0:00:47]} 21. Rac1 {[%emt 0:02:09]} Rcd7 {[%emt 0:01:14]} 22. Kh3 {[%emt 0:07:11]} Rd3 {[%emt 0:02:36]} 23. Na5 {[%emt 0:01:55]} R8d7 {[%emt 0:02:25]} 24. Rc3 {[%emt 0:04:28]} Rd2 {[%emt 0:03:04]} 25. Bc1 {[%emt 0:00:40]} Re2 {[%emt 0:02:25]} 26. Rcf3 {[%emt 0:03:36]} h5 {[%emt 0:11:07]} 27. Rxf7 {[%emt 0:03:22]} g5 {[%emt 0:00:33]} 28. g4 {[%emt 0:03:54]} Rd3+ {[%emt 0:04:18]} 29. R7f3 {[%emt 0:02:28]} hxg4+ {[%emt 0:01:46]} 30. Kxg4 {[%emt 0:03:49]} Rxe4+ {[%emt 0:00:12]} 31. Kg3 {[%emt 0:03:04]} Rxf3+ {[%emt 0:01:14]} 32. Rxf3 {[%emt 0:01:56]} Re1 {[%emt 0:04:55]} 33. Bd2 {[%emt 0:02:30]} Re2 {[%emt 0:01:18]} 34. Rf2 {[%emt 0:01:27]} Rxf2 {[%emt 0:02:00]} 35. Kxf2 {[%emt 0:00:05]} c4 {[%emt 0:03:03]} 36. b4 {[%emt 0:01:01]} a6 {[%emt 0:01:07]} 37. Nc6 {[%emt 0:00:20]} Nd5 {[%emt 0:00:46]} 38. Nxe7+ {[%emt 0:00:50]} Nxe7 {[%emt 0:00:09]} 39. Bxg5 {[%emt 0:00:08]} Ng6 {[%emt 0:01:41]} 40. Bf6 {[%emt 0:03:29]} Nf4 {[%emt 0:03:47]} 41. Ke1 {[%emt 0:31:47]} Nd5 {[%emt 0:33:09]} 42. Kd2 {[%emt 0:01:21]} Kf7 {[%emt 0:00:26]} 43. Bg5 {[%emt 0:02:17]} Kg6 {[%emt 0:00:26]} 44. h4 {[%emt 0:01:26]} Kf5 {[%emt 0:00:34]} 45. Bf6 {[%emt 0:00:49]} Kg4 {[%emt 0:03:51]} 46. a4 {[%emt 0:01:26]} Nxb4 {[%emt 0:03:42]} 47. Kc3 {[%emt 0:00:22]} Nc6 {[%emt 0:08:48]} 48. Kxc4 {[%emt 0:00:22]} Kf5 {[%emt 0:00:20]} 49. Kc5 {[%emt 0:00:00]} Nxe5 {[%emt 0:00:00]} 50. Bg7 {[%emt 0:00:00]} Nd3+ {[%emt 0:00:00]} 51. Kb6 {[%emt 0:00:00]} Kg4 {[%emt 0:00:00]} 52. Bf6 {[%emt 0:00:00]} Nb4 {[%emt 0:00:00]} 53. Kc5 {[%emt 0:00:00]} Nd5 {[%emt 0:00:00]} 54. Bg5 {[%emt 0:00:00]} Nc3 {[%emt 0:00:00]} 55. Kb4 {[%emt 0:00:00]} Nxa4 {[%emt 0:00:00]} 56. Kxa4 {[%emt 0:00:00]} e5 {[%emt 0:00:00]} 57. Ka5 {[%emt 0:00:00]} e4 {[%emt 0:00:00]} 58. Kxa6 {[%emt 0:00:00]} 1-0

[Event "DFMMLV 2024"]
[Site "Braunfels"]
[Date "2024.05.31"]
[Round "2.53"]
[White "Lebioda-Dette, Kordula"]
[Black "Reich, Elisabeth"]
[Result "0-1"]
[ECO "B50"]
[WhiteElo "1821"]
[BlackElo "1797"]
[Annotator "NA RC"]
[PlyCount "78"]
[EventDate "2024.05.30"]
[EventType "team-tourn"]
[EventCountry "GER"]
[SourceTitle "playchess.com"]
[Source "ChessBase"]
[SourceQuality "1"]
[TimeControl "40/5400+30:1800+30"]

1. e4 {[%emt 0:00:03]} c5 {[%emt 0:00:05]} 2. Nf3 {[%emt 0:00:04]} Nc6 {[%emt 0:00:07]} 3. Be2 {[%emt 0:00:05]} d6 {[%emt 0:00:41]} 4. O-O {[%emt 0:00:14]} Nf6 {[%emt 0:00:04]} 5. d3 {[%emt 0:00:07]} g6 {[%emt 0:00:04]} 6. c3 {[%emt 0:00:06]} Bg7 {[%emt 0:00:06]} 7. Bg5 {[%emt 0:00:12]} O-O {[%emt 0:00:11]} 8. Na3 {[%emt 0:00:14]} a6 {[%emt 0:00:49]} 9. Nc4 {[%emt 0:00:20]} b5 {[%emt 0:00:39]} 10. Ne3 {[%emt 0:00:10]} Bb7 {[%emt 0:02:07]} 11. Qc2 {[%emt 0:01:59]} Rc8 {[%emt 0:00:46]} 12. h3 {[%emt 0:00:35]} h6 {[%emt 0:05:33]} 13. Bh4 {[%emt 0:00:34]} e6 {[%emt 0:01:25]} 14. Rad1 {[%emt 0:05:48]} Qb6 {[%emt 0:01:44]} 15. Qb1 {[%emt 0:02:48]} g5 {[%emt 0:05:14]} 16. Bg3 {[%emt 0:00:09]} Ne7 {[%emt 0:00:24]} 17. Nd2 {[%emt 0:02:59]} Ng6 {[%emt 0:02:20]} 18. Bf3 {[%emt 0:20:00]} d5 {[%emt 0:04:39]} 19. exd5 {[%emt 0:02:08]} Nxd5 {[%emt 0:00:17]} 20. Nxd5 {[%emt 0:01:01]} Bxd5 {[%emt 0:00:21]} 21. Bxd5 {[%emt 0:02:51]} exd5 {[%emt 0:00:01]} 22. Nf3 {[%emt 0:02:31]} f5 {[%emt 0:05:03]} 23. Kh1 {[%emt 0:07:13]} f4 {[%emt 0:00:20]} 24. Bh2 {[%emt 0:00:15]} Rfe8 {[%emt 0:04:45]} 25. d4 {[%emt 0:05:09]} c4 {[%emt 0:01:05]} 26. Rde1 {[%emt 0:02:54]} Qf6 {[%emt 0:02:49]} 27. Rxe8+ {[%emt 0:01:30]} Rxe8 {[%emt 0:00:01]} 28. Re1 {[%emt 0:00:17]} Kf7 {[%emt 0:04:12]} 29. Qd1 {[%emt 0:12:22]} Qf5 {[%emt 0:04:42]} 30. Rxe8 {[%emt 0:15:22]} Kxe8 {[%emt 0:00:02]} 31. Kg1 {[%emt 0:01:34]} Kf7 {[%emt 0:01:25]} 32. Kf1 {[%emt 0:00:38]} h5 {[%emt 0:02:30]} 33. Ne1 {[%emt 0:03:58]} g4 {[%emt 0:01:15]} 34. hxg4 {[%emt 0:07:32]} hxg4 {[%emt 0:00:03]} 35. Qc2 {[%emt 0:00:25]} Qh5 {[%emt 0:01:54]} 36. Bg1 {[%emt 0:00:47]} f3 {[%emt 0:01:03]} 37. Qd1 {[%emt 0:00:38]} Nh4 {[%emt 0:01:53]} 38. Nc2 {[%emt 0:02:07]} Nxg2 {[%emt 0:01:35]} 39. Ne3 {[%emt 0:00:40]} Qh3 {[%emt 0:01:39]} 0-1

[Event "DFMMLV 2024"]
[Site "Braunfels"]
[Date "2024.05.31"]
[Round "3.1"]
[White "Klek, Hanna Marie"]
[Black "Jelica, Mara"]
[Result "1-0"]
[ECO "B90"]
[WhiteElo "2294"]
[BlackElo "2067"]
[Annotator "RC"]
[PlyCount "79"]
[EventDate "2024.05.30"]
[EventType "team-tourn"]
[EventCountry "GER"]
[SourceTitle "playchess.com"]
[Source "ChessBase"]
[SourceQuality "1"]
[TimeControl "40/5400+30:1800+30"]

1. e4 {[%emt 0:00:03]} c5 {[%emt 0:00:05]} 2. Nf3 {[%emt 0:00:06]} d6 {[%emt 0:00:05]} 3. d4 {[%emt 0:00:06]} cxd4 {[%emt 0:00:03]} 4. Nxd4 {[%emt 0:00:06]} Nf6 {[%emt 0:00:05]} 5. Nc3 {[%emt 0:00:06]} a6 {[%emt 0:00:02]} 6. Be3 {[%emt 0:00:08]} e5 {[%emt 0:00:04]} 7. Nb3 {[%emt 0:00:06]} Be6 {[%emt 0:00:04]} 8. Qd2 {[%emt 0:00:09]} Be7 {[%emt 0:00:29]} 9. f3 {[%emt 0:00:17]} Qc7 {[%emt 0:00:34]} 10. g4 {[%emt 0:04:28]} Nbd7 {[%emt 0:00:58]} 11. g5 {[%emt 0:04:12]} Nh5 {[%emt 0:00:16]} 12. O-O-O {[%emt 0:01:56]} b5 {[%emt 0:05:31]} 13. Nd5 {[%emt 0:10:23]} Bxd5 {[%emt 0:00:34]} 14. exd5 {[%emt 0:01:11]} O-O {[%emt 0:03:24]} 15. Kb1 {[%emt 0:03:40]} Bd8 {[%emt 0:02:08]} 16. c4 {[%emt 0:10:31]} bxc4 {[%emt 0:03:24]} 17. Rc1 {[%emt 0:00:47]} Nb6 {[%emt 0:03:10]} 18. Na5 {[%emt 0:07:10]} Qd7 {[%emt 0:02:37]} 19. Nc6 {[%emt 0:08:49]} Bc7 {[%emt 0:04:58]} 20. h4 {[%emt 0:04:04]} f5 {[%emt 0:08:21]} 21. gxf6 {[%emt 0:10:13]} Rxf6 {[%emt 0:03:58]} 22. Bh3 {[%emt 0:01:57]} Qe8 {[%emt 0:01:47]} 23. Qa5 {[%emt 0:08:22]} Rb8 {[%emt 0:09:49]} 24. Nxb8 {[%emt 0:00:26]} Qxb8 {[%emt 0:00:08]} 25. Qxa6 {[%emt 0:01:28]} Ng3 {[%emt 0:04:36]} 26. Rhe1 {[%emt 0:01:00]} Rxf3 {[%emt 0:02:00]} 27. Bg4 {[%emt 0:05:08]} Rf8 {[%emt 0:02:26]} 28. Rc2 {[%emt 0:04:28]} Kh8 {[%emt 0:06:22]} 29. Be6 {[%emt 0:02:59]} Nh5 {[%emt 0:01:57]} 30. Rf2 {[%emt 0:01:31]} Nf6 {[%emt 0:00:43]} 31. Ref1 {[%emt 0:00:36]} Re8 {[%emt 0:00:57]} 32. Qb5 {[%emt 0:03:56]} c3 {[%emt 0:08:45]} 33. a4 {[%emt 0:00:28]} cxb2 {[%emt 0:01:14]} 34. Bg5 {[%emt 0:01:54]} Ng8 {[%emt 0:06:21]} 35. a5 {[%emt 0:00:52]} Qa8 {[%emt 0:00:14]} 36. Rxb2 {[%emt 0:01:06]} Nc4 {[%emt 0:02:21]} 37. Qxc4 {[%emt 0:00:51]} Qxa5 {[%emt 0:00:04]} 38. Qb5 {[%emt 0:00:33]} Qa8 {[%emt 0:00:39]} 39. Rc1 {[%emt 0:00:32]} Rb8 {[%emt 0:02:03]} 40. Qxb8 {[%emt 0:03:52]} 1-0

[Event "DFMMLV 2024"]
[Site "Braunfels"]
[Date "2024.05.31"]
[Round "3.2"]
[White "Hund, Sarah"]
[Black "Schneider, Jana"]
[Result "1/2-1/2"]
[ECO "C54"]
[WhiteElo "1991"]
[BlackElo "2300"]
[Annotator "RC"]
[PlyCount "105"]
[EventDate "2024.05.30"]
[EventType "team-tourn"]
[EventCountry "GER"]
[SourceTitle "playchess.com"]
[Source "ChessBase"]
[SourceQuality "1"]
[TimeControl "40/5400+30:1800+30"]

1. e4 {[%emt 0:00:03]} e5 {[%emt 0:00:08]} 2. Bc4 {[%emt 0:00:09]} Nf6 {[%emt 0:00:11]} 3. d3 {[%emt 0:00:12]} Nc6 {[%emt 0:00:10]} 4. Nf3 {[%emt 0:00:15]} Bc5 {[%emt 0:00:11]} 5. c3 {[%emt 0:00:17]} a6 {[%emt 0:00:15]} 6. a4 {[%emt 0:00:38]} Ba7 {[%emt 0:00:19]} 7. Bg5 {[%emt 0:00:37]} h6 {[%emt 0:04:00]} 8. Bh4 {[%emt 0:00:29]} d6 {[%emt 0:01:21]} 9. Nbd2 {[%emt 0:01:35]} Qe7 {[%emt 0:10:36]} 10. O-O {[%emt 0:02:42]} Be6 {[%emt 0:04:30]} 11. b4 {[%emt 0:03:06]} g5 {[%emt 0:04:01]} 12. Bg3 {[%emt 0:00:35]} Bxc4 {[%emt 0:01:47]} 13. Nxc4 {[%emt 0:00:50]} Qe6 {[%emt 0:00:43]} 14. b5 {[%emt 0:05:20]} Ne7 {[%emt 0:01:15]} 15. Qb3 {[%emt 0:03:49]} O-O {[%emt 0:02:30]} 16. Rfe1 {[%emt 0:03:31]} Nh5 {[%emt 0:05:08]} 17. d4 {[%emt 0:05:33]} Nxg3 {[%emt 0:02:18]} 18. hxg3 {[%emt 0:01:41]} g4 {[%emt 0:00:10]} 19. b6 {[%emt 0:06:01]} gxf3 {[%emt 0:08:20]} 20. bxa7 {[%emt 0:00:47]} fxg2 {[%emt 0:00:40]} 21. Kxg2 {[%emt 0:00:43]} Rxa7 {[%emt 0:01:39]} 22. dxe5 {[%emt 0:01:39]} dxe5 {[%emt 0:00:35]} 23. Rh1 {[%emt 0:02:55]} Kg7 {[%emt 0:16:37]} 24. Qb4 {[%emt 0:06:16]} Nc6 {[%emt 0:09:40]} 25. Qc5 {[%emt 0:04:32]} b6 {[%emt 0:02:07]} 26. Qe3 {[%emt 0:01:43]} Raa8 {[%emt 0:07:31]} 27. Rh5 {[%emt 0:05:01]} f5 {[%emt 0:03:54]} 28. exf5 {[%emt 0:06:05]} Rxf5 {[%emt 0:00:15]} 29. Rxf5 {[%emt 0:01:26]} Qxf5 {[%emt 0:00:08]} 30. Rh1 {[%emt 0:00:36]} h5 {[%emt 0:02:26]} 31. Qe2 {[%emt 0:03:06]} Rh8 {[%emt 0:00:34]} 32. Rh4 {[%emt 0:00:50]} Qf7 {[%emt 0:06:49]} 33. Nxe5 {[%emt 0:07:00]} Re8 {[%emt 0:02:35]} 34. Rxh5 {[%emt 0:02:33]} Qd5+ {[%emt 0:00:28]} 35. Qf3 {[%emt 0:00:32]} Qxf3+ {[%emt 0:01:31]} 36. Nxf3 {[%emt 0:00:05]} Re4 {[%emt 0:02:30]} 37. Rd5 {[%emt 0:06:48]} Rxa4 {[%emt 0:00:31]} 38. Rd7+ {[%emt 0:00:31]} Kf6 {[%emt 0:00:01]} 39. Rxc7 {[%emt 0:00:58]} Na5 {[%emt 0:00:38]} 40. Nd4 {[%emt 0:01:39]} Nc4 {[%emt 0:00:56]} 41. f4 {[%emt 0:32:37]} b5 {[%emt 0:05:11]} 42. g4 {[%emt 0:00:00]} Ra2+ {[%emt 0:08:11]} 43. Kg3 {[%emt 0:00:00]} Ne3 {[%emt 0:02:30]} 44. g5+ {[%emt 0:00:00]} Kg6 {[%emt 0:00:04]} 45. Rc6+ {[%emt 0:00:00]} Kg7 {[%emt 0:01:17]} 46. f5 {[%emt 0:00:00]} b4 {[%emt 0:04:41]} 47. cxb4 {[%emt 0:00:00]} Rd2 {[%emt 0:00:18]} 48. Rd6 {[%emt 0:00:00]} Rxd4 {[%emt 0:00:35]} 49. Rg6+ {[%emt 0:00:00]} Kh7 {[%emt 0:01:07]} 50. Rh6+ {[%emt 0:00:00]} Kg7 {[%emt 0:01:29]} 51. Rg6+ {[%emt 0:00:00]} Kh7 {[%emt 0:00:18]} 52. Rh6+ {[%emt 0:00:00]} Kg7 {[%emt 0:00:07]} 53. Rg6+ {[%emt 0:21:15]} 1/2-1/2